fUST/lending_fUST_20250715
["ID","MTS","AMOUNT","RATE_DAILY","PERIOD"]
[372317372,1752587432508,-920.23,0.00023,2]
[372317373,1752587432519,-460.0,0.00023266,2]
[372317375,1752587432529,-460.0,0.00023266,2]
[372317376,1752587432539,-460.0,0.00023266,2]
[372317378,1752587432549,-460.0,0.00023266,2]
[372317380,1752587432559,-460.0,0.00023266,2]
[372317382,1752587432570,-460.0,0.00023266,2]
[372317384,1752587432580,-460.0,0.00023266,2]
[372317386,1752587432590,-460.0,0.00023266,2]
[372317388,1752587432600,-460.0,0.00023266,2]
[372317390,1752587432609,-471.43205001,0.00023266,2]
[372317392,1752587432619,-420.0,0.00023371,2]
[372317394,1752587432629,-647.0,0.00023484,2]
[372317396,1752587432638,-2155.0,0.00023484,2]
[372317398,1752587432647,-407.0,0.00023484,2]
[372317400,1752587432657,-968.0,0.00023484,2]
[372317402,1752587432666,-500.0,0.00023874,2]
[372317404,1752587432676,-3114.554,0.00024051,2]
[372317406,1752587432687,-223.0315306,0.00024322,2]
[372317408,1752587432696,-200.0,0.00024658,15]
[372317410,1752587432706,-490.681626,0.00024836,8]
[372317412,1752587432715,-234.775,0.00025,8]
[372317414,1752587432724,-460.0,0.00025099,2]
[372317416,1752587432734,-1603.86941318,0.000251,2]
[372317418,1752587432746,-396.13058682,0.000251,2]
[372317420,1752587432756,-209.31941318,0.000251,2]
[372317422,1752587432767,-1790.68058682,0.000251,2]
[372317424,1752587432777,-500.0,0.00025133,2]
[372317426,1752587432786,-500.0,0.00025133,2]
[372317429,1752587432796,-500.0,0.00025133,2]
[372317430,1752587432805,-500.0,0.00025133,2]
[372317432,1752587432815,-219.98249548,0.00025133,2]
[372317435,1752587432830,-280.01750452,0.00025133,2]
[372317437,1752587432839,-352.12405547,0.00025133,2]
[372317439,1752587432848,-99.68818464,0.00025133,2]
[372317441,1752587432864,-400.31181536,0.00025133,2]
[372317444,1752587432873,-357.24018706,0.00025134,7]
[372317446,1752587432884,-1480.55487187,0.00025134,7]
[372317988,1752587438550,-324.22900203,0.00025134,7]
[372317995,1752587438623,-1968.88167833,0.00025134,7]
[372317998,1752587438633,-200.0,0.0002519,12]
[372318000,1752587438642,-503.67035908,0.00025208,2]
[372318002,1752587438651,-1297.17340175,0.00025213,3]
[372318005,1752587438663,-1720.3647599,0.00025213,3]
[372318094,1752587440491,-1644.28,0.00025213,3]
[372318235,1752587443483,-1469.19117275,0.00025213,3]
[372318241,1752587443541,-11531.45111881,0.00025213,3]
[372318243,1752587443551,-525.51022752,0.00025213,3]
[372318246,1752587443561,-261.34711728,0.00025279,2]
[372318248,1752587443570,-1632.01,0.0002528,10]
[372318250,1752587443583,-2794.59,0.0002528,10]
[372318252,1752587443592,-2328.82,0.0002528,10]
[372318253,1752587443602,-1940.68,0.0002528,10]
[372318254,1752587443612,-212957.35136406,0.0002529,2]
[372318412,1752587446550,-460.0,0.00019451,2]
[372318415,1752587446561,-204.93,0.00019725,2]
[372318418,1752587446570,-11335.07,0.00025113,2]
[372319042,1752587949809,509.95602512,0.00022,30]
[372319047,1752588147689,4454.4190569,0.00025335,120]
[372319049,1752588211163,3497.0,0.00023,30]
[372319050,1752588339105,-255.84239417,0.00021468,2]
[372319051,1752588339128,-300.0,0.00021477,2]
[372319052,1752588339149,-300.0,0.00021477,2]
[372319053,1752588339171,-101.97737458,0.00021477,2]
[372319054,1752588356099,-1098.02262542,0.00021477,2]
[372319055,1752588356120,-3786.2233989,0.00021478,2]
[372319057,1752588425106,-230.0,0.00021477,2]
[372319058,1752588425128,-425.39290116,0.00021578,2]
[372319059,1752588425153,-460.0,0.00021578,2]
[372319060,1752588425176,-460.0,0.00021578,2]
[372319061,1752588425211,-460.0,0.00021578,2]
[372319062,1752588425233,-500.0,0.00021682,2]
[372319063,1752588425255,-460.0,0.00021852,2]
[372319064,1752588425280,-300.0,0.0002186,2]
[372319065,1752588425301,-1919.0064634,0.00021861,2]
[372319066,1752588425322,-460.0,0.00021894,2]
[372319067,1752588425343,-460.0,0.00021895,2]
[372319068,1752588425370,-209.37055897,0.00021899,2]
[372319069,1752588437094,-3382.26771857,0.00021799,2]
[372319070,1752588440077,-157.48846894,0.00021799,2]
[372319071,1752588583492,158.183563,0.00013699,2]
[372319082,1752588638454,-158.183563,0.00020951,2]
[372319083,1752588638464,-861.816437,0.00021581,2]
[372319553,1752588643502,-7853.00872116,0.00021581,2]
[372319557,1752588643512,-460.0,0.00021681,2]
[372319560,1752588643522,-607.25,0.00021681,2]
[372319563,1752588643532,-460.0,0.00021681,2]
[372319566,1752588643541,-500.0,0.00021682,2]
[372319569,1752588643549,-460.0,0.00021894,2]
[372319572,1752588643559,-460.0,0.00021899,2]
[372319575,1752588643568,-27.29804195,0.00021899,2]
[372319618,1752588644054,-432.70195805,0.00021899,2]
[372319620,1752588644064,-136.09189742,0.000219,2]
[372319622,1752588644075,-506.10292636,0.000219,2]
[372319624,1752588644086,-323.84,0.000219,2]
[372319627,1752588644107,-3006.45712622,0.000219,2]
[372319629,1752588644119,-460.0,0.00021955,2]
[372319631,1752588644129,-162.0,0.00022,2]
[372319633,1752588644138,-460.0,0.00022126,2]
[372319635,1752588644148,-460.0,0.00022168,2]
[372319637,1752588644158,-460.0,0.00022173,2]
[372319638,1752588644167,-160.0,0.000222,2]
[372319640,1752588644177,-460.0,0.00022229,2]
[372319642,1752588644186,-460.0,0.000224,2]
[372319644,1752588644196,-460.95236869,0.00022442,2]
[372319646,1752588644206,-418.97944103,0.00022503,2]
[372319648,1752588644216,-460.0,0.00022674,2]
[372319650,1752588644226,-168.264952,0.00022685,2]
[372319651,1752588644235,-466.2178197,0.00022746,2]
[372319653,1752588644245,-161.9,0.000228,2]
[372319655,1752588644255,-207.4,0.00022825,2]
[372319657,1752588644264,-4140.5,0.00022825,2]
[372319659,1752588644273,-525.51022752,0.00022945,2]
[372319661,1752588644283,-460.0,0.00022948,2]
[372319663,1752588644292,-851.06,0.00022999,2]
[372319664,1752588644302,-828.2,0.00023,2]
[372319666,1752588644312,-162.0,0.00023014,7]
[372319668,1752588644323,-160.0,0.0002315,2]
[372319670,1752588644337,-158.62891,0.00023195,2]
[372319672,1752588644347,-460.0,0.00023222,2]
[372319674,1752588644357,-187.82,0.00023265,3]
[372319676,1752588644368,-851.06,0.00023273,2]
[372319677,1752588644378,-163.19094853,0.00023384,2]
[372319679,1752588644387,-500.0,0.00023456,2]
[372319681,1752588644397,-647.0,0.00023484,2]
[372319683,1752588644408,-2155.0,0.00023484,2]
[372319685,1752588644417,-968.0,0.00023484,2]
[372319687,1752588644427,-460.0,0.00023496,2]
[372319688,1752588644436,-851.06,0.00023547,2]
[372319690,1752588644446,-260.0,0.00023698,2]
[372319692,1752588644456,-460.0,0.0002377,2]
[372319694,1752588644465,-851.06,0.00023821,2]
[372319696,1752588644475,-163.19094852,0.00023847,2]
[372319698,1752588644485,-219.95747506,0.00023874,2]
[372319699,1752588644496,-274.08036601,0.00024,7]
[372319701,1752588644507,-460.0,0.00024044,2]
[372319703,1752588644518,-851.06,0.00024095,2]
[372319705,1752588644528,-215.0738,0.00024194,2]
[372319707,1752588644537,-240.0,0.00024246,2]
[372319709,1752588644547,-163.19094852,0.0002431,2]
[372319711,1752588644557,-460.0,0.00024318,2]
[372319713,1752588644567,-851.06,0.00024369,2]
[372319714,1752588644577,-460.0,0.00024592,2]
[372319716,1752588644587,-460.0,0.00024634,2]
[372319718,1752588644597,-460.0,0.00024634,2]
[372319720,1752588644607,-851.06,0.00024643,2]
[372319722,1752588644618,-200.0,0.00024658,15]
[372319724,1752588644628,-380.0,0.00024658,2]
[372319726,1752588644638,-500.0,0.0002468,2]
[372319727,1752588644647,-468.75,0.00024729,2]
[372319729,1752588644657,-163.19094852,0.00024772,2]
[372319731,1752588644667,-420.584251,0.00024836,8]
[372319733,1752588644677,-158.86,0.00024866,2]
[372319735,1752588644687,-540.0,0.00024908,2]
[372319737,1752588644696,-851.06,0.00024917,2]
[372319738,1752588644706,-2000.0,0.000251,2]
[372319740,1752588644716,-2000.0,0.000251,2]
[372319742,1752588644725,-1373.0015923,0.00025169,2]
[372319744,1752588644735,-17661.02968577,0.0002517,3]
[372319746,1752588644745,-851.06,0.00025191,2]
[372319748,1752588644755,-525.51022752,0.00025213,3]
[372319749,1752588644764,-168.0,0.00025219,2]
[372319751,1752588644774,-163.19094852,0.00025235,2]
[372319753,1752588644784,-25170.8805828,0.00025251,2]
[372319755,1752588644795,-1545.40949718,0.00025251,2]
[372319757,1752588644805,-75549.15936581,0.0002526,2]
[372319759,1752588644818,-21236.3,0.0002526,2]
[372319761,1752588644833,-5143.27627293,0.0002526,2]
[372319763,1752588644846,-1814.73052509,0.0002526,2]
[372319774,1752588644948,-542.6940027,0.0002526,2]
[372319776,1752588644961,-363.26855748,0.0002526,2]
[372319778,1752588644973,-305.35566591,0.0002526,2]
[372319803,1752588646491,-1617.24,0.00025251,10]
[372319805,1752588646501,-3103.96,0.0002526,2]
[372321623,1752588900411,500.0,0.00022986,30]
[372321648,1752589556159,-445.7190445,0.00019451,2]
[372321649,1752589556349,-460.0,0.00019451,2]
[372321650,1752589556373,-168.264952,0.00020787,2]
[372321651,1752589556394,-160.0,0.00020787,2]
[372321652,1752589556417,-2758.17838065,0.00020824,2]
[372321656,1752589629113,-372.61626125,0.00020824,2]
[372321657,1752589629138,-170.98261318,0.00021477,2]
[372321658,1752589629164,-800.0,0.000215,2]
[372321659,1752589629189,-668.26620224,0.00021577,2]
[372321660,1752589632086,-531.73379776,0.00021577,2]
[372321661,1752589632111,-300.0,0.00021577,2]
[372321662,1752589632139,-460.0,0.00021578,2]
[372321663,1752589632165,-460.0,0.00021578,2]
[372321664,1752589632193,-460.0,0.00021578,2]
[372321665,1752589632220,-364.08,0.00021578,2]
[372321666,1752589632246,-460.0,0.00021578,2]
[372321667,1752589632268,-460.0,0.00021578,2]
[372321668,1752589632292,-342.54341154,0.00021578,2]
[372321669,1752589632317,-525.51022752,0.00021615,2]
[372321670,1752589632341,-510.04701595,0.00021852,2]
[372321671,1752589632365,-460.0,0.00021894,2]
[372321672,1752589632390,-6.76208358,0.00021894,2]
[372321673,1752589633137,-453.23791642,0.00021894,2]
[372321674,1752589633161,-460.0,0.00021894,2]
[372321675,1752589633185,-460.0,0.00021894,2]
[372321676,1752589633209,-203.67905856,0.00021894,2]
[372321677,1752589636124,-113.38411178,0.00021894,2]
[372321678,1752589636148,-460.0,0.00021894,2]
[372321679,1752589636171,-521.3216929,0.00021894,2]
[372321680,1752589636193,-460.0,0.00021894,2]
[372321681,1752589636215,-190.95752691,0.00021894,2]
[372321682,1752589636237,-442.18712251,0.00021894,2]
[372321683,1752589636259,-460.0,0.00021894,2]
[372321684,1752589636282,-481.08674792,0.00021894,2]
[372321685,1752589636304,-460.0,0.00021894,2]
[372321686,1752589636327,-460.0,0.00021894,2]
[372321687,1752589636349,-460.0,0.00021894,2]
[372321688,1752589636372,-460.0,0.00021894,2]
[372321689,1752589636397,-208.18,0.00021894,2]
[372321690,1752589636593,-460.0,0.00021894,2]
[372321691,1752589636614,-460.0,0.00021894,2]
[372321692,1752589636640,-460.0,0.00021894,2]
[372321693,1752589636661,-460.0,0.00021895,2]
[372321694,1752589636683,-460.0,0.00021895,2]
[372321695,1752589636705,-460.0,0.00021895,2]
[372321696,1752589636728,-460.0,0.00021895,2]
[372321697,1752589636748,-460.0,0.00021895,2]
[372321698,1752589636769,-460.0,0.00021895,2]
[372321699,1752589636789,-458.14237407,0.00021895,2]
[372321700,1752589655444,678.4,0.00027397,120]
[372321701,1752589672303,1580.30111309,0.00018,2]
[372321708,1752589749170,-3262.89724298,0.00021,3]
[372321709,1752589749191,-1798.0969171,0.00021699,2]
[372321710,1752589753093,-1304.50538754,0.00021699,2]
[372321712,1752589773780,158.183563,0.00013699,2]
[372321749,1752589832749,-981.53668425,0.00021699,2]
[372321751,1752589832761,-10.83309399,0.00021699,2]
[372321753,1752589832772,-500.0,0.00021873,2]
[372321755,1752589832782,-326.39071524,0.00021873,2]
[372321757,1752589832792,-300.0,0.00021893,2]
[372321759,1752589832803,-498.11754198,0.00021894,2]
[372321761,1752589832813,-460.0,0.00021894,2]
[372321763,1752589832822,-460.0,0.00021894,2]
[372321765,1752589832832,-460.0,0.00021894,2]
[372321767,1752589832841,-460.0,0.00021894,2]
[372321769,1752589832851,-460.0,0.00021894,2]
[372321771,1752589832861,-460.0,0.00021894,2]
[372321773,1752589832872,-460.0,0.00021894,2]
[372321775,1752589832882,-460.0,0.00021894,2]
[372321777,1752589832892,-460.0,0.00021894,2]
[372321779,1752589832901,-460.0,0.00021894,2]
[372321781,1752589832910,-247.21810094,0.00021894,2]
[372321783,1752589832923,-212.78189906,0.00021894,2]
[372321785,1752589832934,-285.73,0.00021894,2]
[372321787,1752589832943,-99.65282035,0.00021894,2]
[372322016,1752589838674,-525.51022752,0.00021694,2]
[372322017,1752589838683,-360.34717965,0.00021894,2]
[372322018,1752589838696,-570.8,0.00021894,2]
[372322019,1752589838705,-461.85762593,0.00021894,2]
[372322020,1752589838714,-500.0,0.00021895,2]
[372322021,1752589838724,-102.28140161,0.00021895,2]
[372322022,1752589838769,-357.71859839,0.00021895,2]
[372322025,1752589838780,-460.0,0.00021895,2]
[372322026,1752589838790,-460.0,0.00021895,2]
[372322028,1752589838800,-460.0,0.00021895,2]
[372322030,1752589838810,-460.0,0.00021895,2]
[372322032,1752589838819,-329.33150365,0.00021895,2]
[372322034,1752589838829,-460.0,0.00021895,2]
[372322036,1752589838838,-460.0,0.00021895,2]
[372322037,1752589838847,-460.0,0.00021896,2]
[372322038,1752589838857,-460.0,0.00021897,2]
[372322039,1752589838877,-460.0,0.00021897,2]
[372322040,1752589838887,-460.0,0.00021897,2]
[372322041,1752589838896,-498.8262201,0.00021897,2]
[372322042,1752589838906,-180.88897917,0.00021897,2]
[372322043,1752589838919,-279.11102083,0.00021897,2]
[372322044,1752589838928,-150.256,0.00021897,2]
[372322045,1752589838938,-460.0,0.00021897,2]
[372322046,1752589838948,-460.0,0.00021897,2]
[372322047,1752589838958,-460.0,0.00021897,2]
[372322048,1752589838967,-460.0,0.00021897,2]
[372322049,1752589838976,-460.0,0.00021897,2]
[372322050,1752589838986,-460.0,0.00021897,2]
[372322051,1752589838995,-460.0,0.00021897,2]
[372322052,1752589839005,-460.0,0.00021897,2]
[372322053,1752589839015,-489.66764359,0.00021897,2]
[372322054,1752589839024,-460.0,0.00021897,2]
[372322055,1752589839034,-460.0,0.00021897,2]
[372322056,1752589839043,-460.0,0.00021897,2]
[372322057,1752589839053,-119.96533558,0.00021897,2]
[372322058,1752589839069,-340.03466442,0.00021897,2]
[372322059,1752589839079,-460.0,0.00021897,2]
[372322061,1752589839088,-150.96092547,0.00021897,2]
[372322063,1752589839100,-309.03907453,0.00021897,2]
[372322065,1752589839110,-460.0,0.00021897,2]
[372322066,1752589839120,-594.60709884,0.00021897,2]
[372322067,1752589839130,-460.0,0.00021897,2]
[372322068,1752589839139,-460.0,0.00021897,2]
[372322069,1752589839150,-460.0,0.00021897,2]
[372322070,1752589839159,-460.0,0.00021897,2]
[372322071,1752589839169,-460.0,0.00021897,2]
[372322072,1752589839180,-460.0,0.00021898,2]
[372322073,1752589839189,-460.0,0.00021898,2]
[372322074,1752589839199,-460.0,0.00021898,2]
[372322075,1752589839208,-460.0,0.00021898,2]
[372322076,1752589839218,-460.0,0.00021898,2]
[372322077,1752589839228,-460.0,0.00021898,2]
[372322078,1752589839237,-460.0,0.00021898,2]
[372322079,1752589839247,-460.0,0.00021898,2]
[372322080,1752589839257,-460.0,0.00021898,2]
[372322082,1752589839266,-460.0,0.00021898,2]
[372322084,1752589839276,-460.0,0.00021898,2]
[372322086,1752589839285,-460.0,0.00021898,2]
[372322088,1752589839295,-460.0,0.00021898,2]
[372322090,1752589839307,-460.0,0.00021899,2]
[372322092,1752589839316,-460.0,0.00021899,2]
[372322094,1752589839326,-460.0,0.00021899,2]
[372322096,1752589839335,-202.80415302,0.00021899,2]
[372322098,1752589839345,-531.92,0.00021899,2]
[372322100,1752589839354,-460.0,0.00021899,2]
[372322102,1752589839364,-460.0,0.00021899,2]
[372322103,1752589839374,-158.183563,0.00021918,2]
[372322104,1752589839383,-355.88784711,0.00022168,2]
[372322105,1752589839393,-460.0,0.00022168,2]
[372322106,1752589839402,-460.0,0.00022168,2]
[372322107,1752589839412,-460.0,0.00022168,2]
[372322108,1752589839421,-460.0,0.00022168,2]
[372322109,1752589839430,-460.0,0.00022168,2]
[372322110,1752589839439,-460.0,0.00022168,2]
[372322111,1752589839448,-234.57560634,0.00022168,2]
[372322112,1752589839457,-460.0,0.00022168,2]
[372322113,1752589839467,-460.0,0.00022169,2]
[372322114,1752589839476,-460.0,0.00022169,2]
[372322115,1752589839485,-460.0,0.00022171,2]
[372322116,1752589839495,-460.0,0.00022171,2]
[372322117,1752589839504,-460.0,0.00022171,2]
[372322118,1752589839513,-460.0,0.00022171,2]
[372322119,1752589839523,-500.0,0.00022171,2]
[372322120,1752589839533,-190.76579792,0.00022171,2]
[372322121,1752589839542,-500.0,0.00022171,2]
[372322122,1752589839551,-500.0,0.00022171,2]
[372322123,1752589839563,-500.0,0.00022171,2]
[372322124,1752589839572,-500.0,0.00022171,2]
[372322125,1752589839581,-500.0,0.00022171,2]
[372322126,1752589839590,-500.0,0.00022171,2]
[372322127,1752589839599,-492.21085924,0.00022171,2]
[372322128,1752589839612,-7.78914076,0.00022171,2]
[372322129,1752589839621,-315.62025558,0.00022171,2]
[372322130,1752589839632,-184.37974442,0.00022171,2]
[372322131,1752589839642,-350.47667086,0.00022171,2]
[372322132,1752589839652,-500.0,0.00022171,2]
[372322133,1752589839661,-500.0,0.00022171,2]
[372322134,1752589839670,-500.0,0.00022171,2]
[372322135,1752589839679,-500.0,0.00022171,2]
[372322136,1752589839689,-458.36707446,0.00022171,2]
[372322137,1752589839703,-500.0,0.00022171,2]
[372322138,1752589839713,-500.0,0.00022171,2]
[372322139,1752589839722,-500.0,0.00022171,2]
[372322140,1752589839731,-500.0,0.00022171,2]
[372322141,1752589839742,-500.0,0.00022171,2]
[372322142,1752589839752,-500.0,0.00022171,2]
[372322143,1752589839761,-500.0,0.00022171,2]
[372322144,1752589839772,-500.0,0.00022171,2]
[372322145,1752589839781,-433.92191044,0.00022171,2]
[372322146,1752589839792,-500.0,0.00022171,2]
[372322147,1752589839801,-460.0,0.00022172,2]
[372322148,1752589839814,-460.0,0.00022172,2]
[372322150,1752589839823,-460.0,0.00022172,2]
[372322151,1752589839832,-460.0,0.00022173,2]
[372322153,1752589839842,-531.92,0.00022173,2]
[372322155,1752589839851,-460.0,0.00022442,2]
[372322157,1752589839861,-460.0,0.00022442,2]
[372322159,1752589839871,-302.67,0.00022442,2]
[372322161,1752589839880,-460.0,0.00022442,2]
[372322163,1752589839890,-531.92,0.00022447,2]
[372322165,1752589839899,-500.0,0.00022469,2]
[372322167,1752589839908,-503.24985721,0.00022469,2]
[372322168,1752589839917,-800.0,0.000225,3]
[372322171,1752589839927,-460.0,0.00022716,2]
[372322172,1752589839938,-425.14,0.00022716,2]
[372322175,1752589839951,-460.0,0.00022716,2]
[372322177,1752589839962,-531.92,0.00022721,2]
[372322179,1752589839971,-207.4,0.00022825,2]
[372322181,1752589839981,-215.64,0.0002299,2]
[372322183,1752589839992,-427.53,0.0002299,2]
[372322185,1752589840002,-531.92,0.00022995,2]
[372322187,1752589840011,-745.38,0.00023,2]
[372322189,1752589840021,-531.92,0.00023269,2]
[372322191,1752589840031,-460.0,0.00023272,2]
[372322193,1752589840041,-460.0,0.00023272,2]
[372322195,1752589840050,-460.0,0.00023272,2]
[372322197,1752589840062,-460.0,0.00023272,2]
[372322199,1752589840072,-460.0,0.00023272,2]
[372322201,1752589840081,-440.33663325,0.00023272,2]
[372322203,1752589840092,-460.0,0.00023272,2]
[372322205,1752589840101,-460.0,0.00023272,2]
[372322207,1752589840111,-460.0,0.00023272,2]
[372322209,1752589840121,-460.0,0.00023272,2]
[372322211,1752589840130,-460.0,0.00023272,2]
[372322213,1752589840140,-460.0,0.00023272,2]
[372322215,1752589840150,-460.0,0.00023272,2]
[372322217,1752589840159,-460.0,0.00023272,2]
[372322219,1752589840169,-465.94155733,0.00023272,2]
[372322222,1752589840179,-460.0,0.00023272,2]
[372322223,1752589840189,-460.0,0.00023272,2]
[372322225,1752589840198,-460.0,0.00023272,2]
[372322228,1752589840209,-460.0,0.00023272,2]
[372322229,1752589840219,-460.0,0.00023272,2]
[372322232,1752589840229,-460.0,0.00023272,2]
[372322233,1752589840239,-460.0,0.00023272,2]
[372322236,1752589840249,-24.92516846,0.00023272,2]
[372322239,1752589840262,-325.76237576,0.00023272,2]
[372322289,1752589840748,-109.31245578,0.00023272,2]
[372322291,1752589840758,-383.97010575,0.00023272,2]
[372322323,1752589840991,-76.02989425,0.00023272,2]
[372322326,1752589841027,-222.2058019,0.00023272,2]
[372322639,1752589844041,-423.89412164,0.00021897,2]
[372322641,1752589844053,-36.10587836,0.00021897,2]
[372322643,1752589844063,-237.7941981,0.00023272,2]
[372322645,1752589844074,-460.0,0.00023272,2]
[372322647,1752589844084,-460.0,0.00023272,2]
[372322649,1752589844093,-552.4122192,0.00023272,2]
[372322651,1752589844103,-460.0,0.00023272,2]
[372322653,1752589844112,-460.0,0.00023272,2]
[372322655,1752589844122,-460.0,0.00023272,2]
[372322657,1752589844131,-460.0,0.00023272,2]
[372322659,1752589844142,-387.29392138,0.00023272,2]
[372322661,1752589844151,-460.0,0.00023272,2]
[372322663,1752589844160,-1502.0,0.00023457,2]
[372322665,1752589844170,-900.0,0.000235,4]
[372322667,1752589844179,-531.92,0.00023543,2]
[372322669,1752589844189,-460.0,0.00023546,2]
[372322671,1752589844198,-460.0,0.00023546,2]
[372322672,1752589844207,-460.0,0.00023546,2]
[372322674,1752589844217,-460.0,0.00023546,2]
[372322676,1752589844226,-460.0,0.00023546,2]
[372322678,1752589844236,-460.0,0.00023546,2]
[372322681,1752589844245,-460.0,0.00023546,2]
[372322684,1752589844255,-460.0,0.00023546,2]
[372322687,1752589844264,-460.0,0.00023546,2]
[372322690,1752589844273,-460.0,0.00023546,2]
[372322693,1752589844283,-460.0,0.00023546,2]
[372322695,1752589844292,-460.0,0.00023546,2]
[372322697,1752589844302,-415.34,0.00023546,2]
[372322699,1752589844312,-460.0,0.00023546,2]
[372322701,1752589844322,-460.0,0.00023546,2]
[372322703,1752589844331,-460.0,0.00023546,2]
[372322705,1752589844341,-2155.0,0.00023674,2]
[372322706,1752589844350,-968.0,0.00023674,2]
[372322708,1752589844360,-407.0,0.00023674,2]
[372322710,1752589844370,-647.0,0.00023674,2]
[372322712,1752589844380,-429.0948676,0.00023698,2]
[372322715,1752589844400,-429.0948676,0.00023698,2]
[372322718,1752589844411,-531.92,0.00023817,2]
[372322720,1752589844422,-531.92,0.00024091,2]
[372322722,1752589844432,-215.0738,0.00024194,2]
[372322724,1752589844442,-531.92,0.00024365,2]
[372322726,1752589844452,-531.92,0.00024639,2]
[372322728,1752589844462,-429.0948676,0.00024657,2]
[372322730,1752589844472,-858.1897352,0.00024657,2]
[372322732,1752589844482,-300.0,0.00024657,2]
[372322734,1752589844492,-160.0,0.00024657,2]
[372322736,1752589844502,-200.0,0.00024658,15]
[372322738,1752589844512,-649.93,0.0002479,10]
[372322740,1752589844522,-15376.8244964,0.000248,2]
[372322742,1752589844532,-238.77089726,0.00024813,2]
[372322744,1752589844541,-460.0,0.00024835,2]
[372322746,1752589844551,-460.0,0.00024835,2]
[372322748,1752589844563,-460.0,0.00024835,2]
[372322749,1752589844572,-460.0,0.00024835,2]
[372322751,1752589844582,-460.0,0.00024835,2]
[372322754,1752589844592,-360.500787,0.00024836,8]
[372322756,1752589844605,-160.0487716,0.00024873,2]
[372322758,1752589844615,-500.0,0.00024899,2]
[372322760,1752589844624,-500.0,0.00024899,2]
[372322763,1752589844634,-500.0,0.00024899,2]
[372322765,1752589844643,-500.0,0.00024899,2]
[372322766,1752589844652,-500.0,0.00024899,2]
[372322768,1752589844662,-500.0,0.00024899,2]
[372322770,1752589844671,-500.0,0.00024899,2]
[372322772,1752589844681,-500.0,0.00024899,2]
[372322774,1752589844692,-500.0,0.00024899,2]
[372322776,1752589844705,-500.0,0.00024899,2]
[372322778,1752589844715,-500.0,0.00024899,2]
[372322780,1752589844724,-500.0,0.00024899,2]
[372322782,1752589844734,-356.63739655,0.00024899,2]
[372322784,1752589844745,-500.0,0.00024899,2]
[372322786,1752589844755,-200.0,0.00024899,2]
[372322788,1752589844765,-500.0,0.00024899,2]
[372322790,1752589844777,-500.0,0.00024899,2]
[372322792,1752589844788,-500.0,0.00024899,2]
[372322794,1752589844798,-500.0,0.00024899,2]
[372322796,1752589844810,-585.52780858,0.000249,2]
[372322798,1752589844820,-65083.66548759,0.000249,2]
[372322801,1752589844839,-329.99917035,0.00021897,2]
[372322803,1752589844851,-130.00082965,0.00021897,2]
[372322805,1752589844861,-165157.25875041,0.000249,2]
[372322807,1752589844870,-238.77089726,0.00024907,2]
[372322809,1752589844880,-531.92,0.00024913,2]
[372322811,1752589844890,-238.77089726,0.00025002,2]
[372322813,1752589844900,-17662.4604532,0.0002508,3]
[372322815,1752589844909,-238.77089726,0.00025096,2]
[372322817,1752589844918,-463.24179417,0.00025109,2]
[372322819,1752589844928,-460.0,0.00025109,2]
[372322821,1752589844938,-488.58102972,0.0002517,3]